Workbook

Sheet 附表五
A1: 附表5:
A2: 2025年开平市政府性基金预算调整情况表
J3: 单位：万元
A4: 收 入 | F4: 支 出
A5: 项目 | B5: 年初预算数 | C5: 调增额 | D5: 增减额 | E5: 调整预算数 | F5: 项目 | G5: 年初预算数 | H5: 调增额 | I5: 调减额 | J5: 调整预算数
A6: 一、政府性基金预算收入 | B6: 207,605 | C6: 727 | E6: =B6+C6-D6 -> 208,332 | F6: 一、政府性基金预算支出 | G6: 313,597 | H6: 77,860 | J6: =G6+H6-I6 -> 391,457
A7: 二、上年结转收入 | B7: 26,257 | E7: =B7+C7-D7 -> 26,257 | F7: 二、转移性支出 | G7: =G8+G9 -> 8,082 | J7: =J8+J9 -> 8,082
A8: 三、转移性收入 | B8: =B9+B10 -> 3,289 | E8: =E9+E10 -> 3,289 | F8: （一）上解上级支出 | G8: 8,082 | J8: =G8+H8-I8 -> 8,082
A9: （一）上级补助收入 | B9: 3,289 | E9: =B9+C9-D9 -> 3,289 | F9: （二）补助下级支出
A10: （二）下级上解收入 | F10: 三、调出资金
A11: 四、债券转贷收入 | B11: =B12+B13 -> 81,579 | C11: =C12+C13 -> 77,133 | E11: =E12+E13 -> 158,712 | F11: 四、结转下年支出 | G11: 100 | J11: 100
A12: （一）再融资债券收入 | B12: 1,579 | C12: =E12-B12 -> 33 | E12: 1,612 | F12: 五、债券转贷支出
A13: （二）专项债券收入 | B13: 80,000 | C13: =E13-B13 -> 77,100 | E13: 157,100 | F13: （一）再融资债券支出
A14: 五、调入资金 | B14: 4,803 | E14: =B14+C14-D14 -> 4,803 | F14: （二）专项债券支出
F15: 六、债务还本支出 | G15: 1,754 | J15: 1,754
A16: 收入总计 | B16: =B6+B7+B8+B11+B14 -> 323,533 | C16: =C6+C7+C8+C11+C14 -> 77,860 | E16: =E6+E7+E8+E11+E14 -> 401,393 | F16: 支出总计 | G16: =G6+G7+G10+G11+G12+G15 -> 323,533 | H16: =H6+H7+H10+H11+H12+H15 -> 77,860 | J16: =J6+J7+J10+J11+J12+J15 -> 401,393
